[Event "IM Marmaris Karia VIII 2019"]
[Site "Marmaris"]
[Date "2019.07.28"]
[Round "3.4"]
[White "Yazici, Ugur Doga"]
[Black "Maghalashvili, Davit"]
[Result "1-0"]
[ECO "B06"]
[WhiteElo "2143"]
[BlackElo "2485"]
[Annotator "ChessBase"]
[PlyCount "261"]
[EventDate "2019.07.29"]
[EventType "schev"]
[EventCountry "TUR"]
[SourceTitle "playchess.com"]
[Source "ChessBase"]
[SourceQuality "1"]
[TimeControl "5400+30"]

1. e4 {[%emt 0:00:30]} g6 {[%emt 0:02:30]} 2. d4 {[%emt 0:00:00]} Bg7 {[%emt 0:00:30]} 3. Nf3 {[%emt 0:01:00]} d6 {[%emt 0:00:30]} 4. Nbd2 {[%emt 0:04:30]} Nd7 {[%emt 0:01:30]} 5. Bd3 {[%emt 0:00:30]} e5 {[%emt 0:00:30]} 6. c3 {[%emt 0:00:30]} Ne7 {[%emt 0:00:30]} 7. O-O {[%emt 0:00:30]} O-O {[%emt 0:00:30]} 8. Re1 {[%emt 0:00:30]} Nc6 {[%emt 0:05:30]} 9. Nb3 {[%emt 0:04:30]} h6 {[%emt 0:01:30]} 10. Bb5 {[%emt 0:03:30]} Ne7 {[%emt 0:02:30]} 11. dxe5 {[%emt 0:02:30]} Nxe5 {[%emt 0:05:30]} 12. Nxe5 {[%emt 0:01:30]} dxe5 {[%emt 0:00:30]} 13. Be3 {[%emt 0:00:00]} b6 {[%emt 0:01:30]} 14. Qe2 {[%emt 0:01:00]} Be6 {[%emt 0:01:30]} 15. Rad1 {[%emt 0:01:30]} Qc8 {[%emt 0:00:30]} 16. Ba6 {[%emt 0:00:30]} Qe8 {[%emt 0:00:30]} 17. Bb5 {[%emt 0:03:30]} Qc8 {[%emt 0:02:30]} 18. Ba6 {[%emt 0:01:30]} Qb8 {[%emt 0:01:30]} 19. Bc4 {[%emt 0:00:00]} Bxc4 {[%emt 0:02:30]} 20. Qxc4 {[%emt 0:00:00]} Rd8 {[%emt 0:00:30]} 21. f4 {[%emt 0:03:30]} c5 {[%emt 0:02:30]} 22. Rxd8+ {[%emt 0:02:30]} Qxd8 {[%emt 0:00:30]} 23. fxe5 {[%emt 0:01:30]} Qd7 {[%emt 0:00:00]} 24. Nd2 {[%emt 0:07:30]} Rd8 {[%emt 0:02:00]} 25. Nf3 {[%emt 0:07:30]} Nc6 {[%emt 0:00:30]} 26. Bf4 {[%emt 0:05:30]} g5 {[%emt 0:06:30]} 27. Bg3 {[%emt 0:01:30]} Qe7 {[%emt 0:00:30]} 28. Qa4 {[%emt 0:00:30]} Qe6 {[%emt 0:04:30]} 29. h3 {[%emt 0:10:30]} a5 {[%emt 0:03:30]} 30. Rd1 {[%emt 0:01:30]} Rxd1+ {[%emt 0:00:30]} 31. Qxd1 {[%emt 0:00:30]} g4 {[%emt 0:14:30]} 32. hxg4 {[%emt 0:05:30]} Qxg4 {[%emt 0:00:30]} 33. Qd5 {[%emt 0:00:30]} Ne7 {[%emt 0:00:30]} 34. Qa8+ {[%emt 0:00:30]} Kh7 {[%emt 0:00:30]} 35. Qb7 {[%emt 0:00:30]} Qe6 {[%emt 0:00:30]} 36. a4 {[%emt 0:00:00]} Bf8 {[%emt 0:07:30]} 37. Bh4 {[%emt 0:03:00]} Ng6 {[%emt 0:02:30]} 38. Bf6 {[%emt 0:01:30]} Nf4 {[%emt 0:03:30]} 39. Kh2 {[%emt 0:02:30]} Bg7 {[%emt 0:00:30]} 40. Bh4 {[%emt 0:16:52]} Qg4 {[%emt 0:01:30]} 41. Bg3 {[%emt 0:00:24]} Ne2 {[%emt 0:00:30]} 42. Bh4 {[%emt 0:03:34]} Bxe5+ {[%emt 0:03:30]} 43. Kh1 {[%emt 0:00:00]} Qf4 {[%emt 0:02:13]} 44. Qd5 {[%emt 0:02:08]} Bc7 {[%emt 0:02:22]} 45. Qf5+ {[%emt 0:00:51]} Qxf5 {[%emt 0:10:36]} 46. exf5 {[%emt 0:00:01]} Kg7 {[%emt 0:00:31]} 47. Nd2 {[%emt 0:00:58]} h5 {[%emt 0:00:07]} 48. Nc4 {[%emt 0:00:35]} Kf8 {[%emt 0:00:45]} 49. Ne3 {[%emt 0:01:25]} Ke8 {[%emt 0:01:33]} 50. Nd5 {[%emt 0:01:50]} Kd7 {[%emt 0:00:08]} 51. Nf6+ {[%emt 0:00:24]} Kc6 {[%emt 0:00:04]} 52. Nxh5 {[%emt 0:00:17]} b5 {[%emt 0:00:04]} 53. axb5+ {[%emt 0:00:15]} Kxb5 {[%emt 0:00:04]} 54. g4 {[%emt 0:00:11]} Kc4 {[%emt 0:01:35]} 55. g5 {[%emt 0:00:26]} Nf4 {[%emt 0:01:09]} 56. Nxf4 {[%emt 0:00:21]} Bxf4 {[%emt 0:00:13]} 57. g6 {[%emt 0:00:02]} fxg6 {[%emt 0:00:07]} 58. fxg6 {[%emt 0:00:01]} Be5 {[%emt 0:00:10]} 59. Be7 {[%emt 0:00:35]} a4 {[%emt 0:01:55]} 60. Bf8 {[%emt 0:01:05]} Kb3 {[%emt 0:01:13]} 61. Bxc5 {[%emt 0:00:05]} Kxb2 {[%emt 0:00:20]} 62. Bd4 {[%emt 0:01:04]} Bxd4 {[%emt 0:00:24]} 63. cxd4 {[%emt 0:00:02]} a3 {[%emt 0:00:05]} 64. g7 {[%emt 0:00:04]} a2 {[%emt 0:00:05]} 65. g8=Q {[%emt 0:00:06]} a1=Q+ {[%emt 0:00:08]} 66. Qg1 {[%emt 0:00:16]} Qa6 {[%emt 0:01:11]} 67. Qe3 {[%emt 0:00:31]} Qg6 {[%emt 0:00:41]} 68. Kh2 {[%emt 0:01:17]} Qh7+ {[%emt 0:00:32]} 69. Kg2 {[%emt 0:00:08]} Qg6+ {[%emt 0:00:21]} 70. Kf2 {[%emt 0:00:05]} Qf6+ {[%emt 0:00:21]} 71. Ke2 {[%emt 0:00:07]} Qa6+ {[%emt 0:00:13]} 72. Qd3 {[%emt 0:00:25]} Qe6+ {[%emt 0:00:36]} 73. Kd1 {[%emt 0:00:32]} Qd5 {[%emt 0:00:28]} 74. Qc2+ {[%emt 0:00:05]} Ka1 {[%emt 0:00:15]} 75. Qa4+ {[%emt 0:01:26]} Kb1 {[%emt 0:00:33]} 76. Qb4+ {[%emt 0:00:01]} Ka1 {[%emt 0:00:06]} 77. Kd2 {[%emt 0:02:49]} Qg2+ {[%emt 0:00:16]} 78. Ke3 {[%emt 0:00:48]} Qg3+ {[%emt 0:00:11]} 79. Ke4 {[%emt 0:00:15]} Qg4+ {[%emt 0:00:09]} 80. Kd5 {[%emt 0:00:13]} Qf5+ {[%emt 0:00:13]} 81. Kc4 {[%emt 0:00:55]} Qf1+ {[%emt 0:00:17]} 82. Kc5 {[%emt 0:00:49]} Qf8+ {[%emt 0:00:07]} 83. Kb5 {[%emt 0:00:46]} Qe8+ {[%emt 0:00:07]} 84. Kc4 {[%emt 0:00:26]} Qe2+ {[%emt 0:00:06]} 85. Kb3 {[%emt 0:00:47]} Qd1+ {[%emt 0:00:31]} 86. Ka3 {[%emt 0:00:41]} Qd3+ {[%emt 0:00:11]} 87. Ka4 {[%emt 0:00:33]} Qc2+ {[%emt 0:00:25]} 88. Kb5 {[%emt 0:00:20]} Qe2+ {[%emt 0:00:26]} 89. Qc4 {[%emt 0:00:01]} Qe8+ {[%emt 0:00:22]} 90. Qc6 {[%emt 0:00:21]} Qe2+ {[%emt 0:00:16]} 91. Kc5 {[%emt 0:00:04]} Qc2+ {[%emt 0:00:12]} 92. Kd6 {[%emt 0:00:55]} Qg6+ {[%emt 0:00:30]} 93. Kc7 {[%emt 0:00:01]} Qf7+ {[%emt 0:00:06]} 94. Kb6 {[%emt 0:00:52]} Qf2 {[%emt 0:00:42]} 95. Qa4+ {[%emt 0:00:35]} Kb1 {[%emt 0:00:08]} 96. Qb3+ {[%emt 0:01:04]} Ka1 {[%emt 0:00:07]} 97. Qc3+ {[%emt 0:00:05]} Kb1 {[%emt 0:00:12]} 98. Kb5 {[%emt 0:00:16]} Qe2+ {[%emt 0:01:00]} 99. Kc5 {[%emt 0:00:59]} Qe7+ {[%emt 0:00:08]} 100. Kc4 {[%emt 0:00:06]} Qc7+ {[%emt 0:00:18]} 101. Kb3 {[%emt 0:00:39]} Qf7+ {[%emt 0:00:45]} 102. Qc4 {[%emt 0:00:05]} Qf3+ {[%emt 0:00:15]} 103. Kb4 {[%emt 0:00:03]} Kb2 {[%emt 0:05:31]} 104. d5 {[%emt 0:00:59]} Qf8+ {[%emt 0:00:07]} 105. Qc5 {[%emt 0:00:05]} Qb8+ {[%emt 0:00:57]} 106. Qb5 {[%emt 0:00:02]} Qe5 {[%emt 0:01:58]} 107. Ka5+ {[%emt 0:01:45]} Ka1 {[%emt 0:00:22]} 108. Qc6 {[%emt 0:00:34]} Qe1+ {[%emt 0:00:25]} 109. Kb6 {[%emt 0:00:20]} Qe3+ {[%emt 0:00:24]} 110. Qc5 {[%emt 0:00:16]} Qb3+ {[%emt 0:00:18]} 111. Kc7 {[%emt 0:00:05]} Qg3+ {[%emt 0:01:10]} 112. d6 {[%emt 0:00:05]} Qh2 {[%emt 0:00:18]} 113. Qd4+ {[%emt 0:01:55]} Kb1 {[%emt 0:00:17]} 114. Kc8 {[%emt 0:00:36]} Qc2+ {[%emt 0:00:37]} 115. Kd8 {[%emt 0:00:06]} Qh2 {[%emt 0:01:19]} 116. Qb4+ {[%emt 0:00:35]} Ka1 {[%emt 0:00:21]} 117. d7 {[%emt 0:00:30]} Qh8+ {[%emt 0:00:38]} 118. Kc7 {[%emt 0:00:07]} Qe5+ {[%emt 0:00:15]} 119. Kc8 {[%emt 0:00:36]} Qf5 {[%emt 0:00:44]} 120. Qd4+ {[%emt 0:00:17]} Ka2 {[%emt 0:00:31]} 121. Qa7+ {[%emt 0:00:49]} Kb1 {[%emt 0:00:27]} 122. Qb7+ {[%emt 0:00:27]} Ka1 {[%emt 0:00:39]} 123. Qa6+ {[%emt 0:01:39]} Kb1 {[%emt 0:00:09]} 124. Qc6 {[%emt 0:00:08]} Ka1 {[%emt 0:00:52]} 125. Kb7 {[%emt 0:00:16]} Qf7 {[%emt 0:01:17]} 126. Kb8 {[%emt 0:01:13]} Qf8+ {[%emt 0:02:07]} 127. Ka7 {[%emt 0:00:15]} Qe7 {[%emt 0:00:40]} 128. Qc3+ {[%emt 0:00:16]} Ka2 {[%emt 0:00:51]} 129. Qd4 {[%emt 0:00:18]} Qa3+ {[%emt 0:00:58]} 130. Kb6 {[%emt 0:00:11]} Qb3+ {[%emt 0:00:15]} 131. Ka5 1-0

[Event "IM Marmaris Karia VIII 2019"]
[Site "Marmaris"]
[Date "2019.07.28"]
[Round "3.5"]
[White "Caputcuoglu, Zeki Berke"]
[Black "Benidze, Davit"]
[Result "1/2-1/2"]
[ECO "E65"]
[WhiteElo "2010"]
[BlackElo "2469"]
[Annotator "ChessBase"]
[PlyCount "83"]
[EventDate "2019.07.29"]
[EventType "schev"]
[EventCountry "TUR"]
[SourceTitle "playchess.com"]
[Source "ChessBase"]
[SourceQuality "1"]
[TimeControl "5400+30"]

1. Nf3 {[%emt 0:00:30]} g6 {[%emt 0:01:30]} 2. d4 {[%emt 0:00:30]} Bg7 {[%emt 0:00:30]} 3. c4 {[%emt 0:00:30]} Nf6 {[%emt 0:00:00]} 4. g3 {[%emt 0:00:30]} O-O {[%emt 0:00:00]} 5. Bg2 {[%emt 0:00:30]} c5 {[%emt 0:00:30]} 6. O-O {[%emt 0:00:30]} Nc6 {[%emt 0:00:00]} 7. Nc3 {[%emt 0:01:30]} d6 {[%emt 0:00:00]} 8. dxc5 {[%emt 0:01:30]} dxc5 {[%emt 0:00:30]} 9. Be3 {[%emt 0:00:30]} Qa5 {[%emt 0:00:30]} 10. Qa4 {[%emt 0:00:30]} Qxa4 {[%emt 0:00:30]} 11. Nxa4 {[%emt 0:00:30]} b6 {[%emt 0:00:30]} 12. Nc3 {[%emt 0:04:30]} Ba6 {[%emt 0:03:30]} 13. b3 {[%emt 0:04:30]} Rad8 {[%emt 0:00:30]} 14. Rac1 {[%emt 0:04:30]} Ng4 {[%emt 0:02:30]} 15. Bf4 {[%emt 0:02:30]} e5 {[%emt 0:06:30]} 16. Bg5 {[%emt 0:02:30]} f6 {[%emt 0:02:30]} 17. h3 {[%emt 0:07:30]} Nh6 {[%emt 0:00:30]} 18. Bxh6 {[%emt 0:00:30]} Bxh6 {[%emt 0:00:30]} 19. Rcd1 {[%emt 0:00:00]} Nb4 {[%emt 0:02:30]} 20. e3 {[%emt 0:04:00]} Bb7 {[%emt 0:09:30]} 21. Nd2 {[%emt 0:03:30]} Bxg2 {[%emt 0:00:30]} 22. Kxg2 {[%emt 0:00:30]} f5 {[%emt 0:00:30]} 23. a3 {[%emt 0:02:30]} Nc6 {[%emt 0:00:30]} 24. Nd5 {[%emt 0:00:30]} e4 {[%emt 0:00:30]} 25. Nb1 {[%emt 0:00:30]} Bg7 {[%emt 0:02:30]} 26. Nf4 {[%emt 0:11:30]} Kf7 {[%emt 0:01:30]} 27. Nd5 {[%emt 0:02:30]} h5 {[%emt 0:00:30]} 28. Nd2 {[%emt 0:03:30]} Ne7 {[%emt 0:16:30]} 29. Nf4 {[%emt 0:01:30]} Bc3 {[%emt 0:00:30]} 30. Nb1 {[%emt 0:01:30]} Be5 {[%emt 0:03:30]} 31. h4 {[%emt 0:03:30]} Bxf4 {[%emt 0:03:30]} 32. gxf4 {[%emt 0:00:30]} Nc6 {[%emt 0:00:00]} 33. f3 {[%emt 0:02:30]} exf3+ {[%emt 0:03:00]} 34. Kxf3 {[%emt 0:00:30]} Na5 {[%emt 0:01:30]} 35. Nd2 {[%emt 0:00:30]} Rd3 {[%emt 0:00:30]} 36. Ke2 {[%emt 0:00:30]} Rfd8 {[%emt 0:00:00]} 37. b4 {[%emt 0:00:30]} cxb4 {[%emt 0:03:00]} 38. axb4 {[%emt 0:00:30]} Nc6 {[%emt 0:00:00]} 39. b5 {[%emt 0:00:00]} Na5 {[%emt 0:00:00]} 40. Nf3 {[%emt 0:00:00]} Rxd1 {[%emt 0:20:37]} 41. Rxd1 {[%emt 0:00:30]} Rc8 {[%emt 0:01:17]} 42. Ne5+ {[%emt 0:00:00]} 1/2-1/2

[Event "IM Marmaris Karia VIII 2019"]
[Site "Marmaris"]
[Date "2019.07.28"]
[Round "4.1"]
[White "Odeev, Handszar"]
[Black "Dedebas, Emre Emin"]
[Result "1/2-1/2"]
[ECO "C00"]
[WhiteElo "2360"]
[BlackElo "2301"]
[Annotator "NA"]
[PlyCount "62"]
[EventDate "2019.07.29"]
[EventType "schev"]
[EventCountry "TUR"]
[SourceTitle "playchess.com"]
[Source "ChessBase"]
[SourceQuality "1"]
[TimeControl "5400+30"]

1. e4 {[%emt 0:02:30]} e6 {[%emt 0:00:30]} 2. Qe2 {[%emt 0:10:30]} Be7 {[%emt 0:09:30]} 3. d4 {[%emt 0:03:30]} d5 {[%emt 0:09:30]} 4. e5 {[%emt 0:01:30]} c5 {[%emt 0:12:30]} 5. Qg4 {[%emt 0:01:30]} g6 {[%emt 0:07:30]} 6. Nf3 {[%emt 0:20:30]} Nc6 {[%emt 0:02:30]} 7. dxc5 {[%emt 0:07:30]} Qc7 {[%emt 0:23:30]} 8. Bb5 {[%emt 0:04:30]} Bd7 {[%emt 0:01:30]} 9. Bxc6 {[%emt 0:07:30]} Bxc6 {[%emt 0:01:30]} 10. Be3 {[%emt 0:00:30]} h5 {[%emt 0:03:30]} 11. Qf4 {[%emt 0:11:30]} Nh6 {[%emt 0:02:30]} 12. Nbd2 {[%emt 0:01:30]} Nf5 {[%emt 0:01:55]} 13. Nb3 {[%emt 0:00:30]} Bf8 {[%emt 0:04:50]} 14. Bd2 {[%emt 0:11:18]} a5 {[%emt 0:01:35]} 15. h4 {[%emt 0:00:07]} Bh6 {[%emt 0:05:33]} 16. Qh2 {[%emt 0:02:15]} a4 {[%emt 0:01:42]} 17. Nbd4 {[%emt 0:00:34]} Nxd4 {[%emt 0:01:33]} 18. Nxd4 {[%emt 0:00:11]} Bg7 {[%emt 0:00:57]} 19. Bf4 {[%emt 0:04:42]} Qa5+ {[%emt 0:02:22]} 20. c3 {[%emt 0:00:42]} Qxc5 {[%emt 0:00:22]} 21. Qg3 {[%emt 0:01:56]} Qc4 {[%emt 0:02:18]} 22. Qe3 {[%emt 0:00:21]} Bf8 {[%emt 0:01:34]} 23. a3 {[%emt 0:02:15]} Bc5 {[%emt 0:01:09]} 24. Rd1 {[%emt 0:00:41]} Bd7 {[%emt 0:00:16]} 25. Qe2 {[%emt 0:00:27]} Rc8 {[%emt 0:00:18]} 26. Qxc4 {[%emt 0:00:14]} dxc4 {[%emt 0:00:02]} 27. Ke2 {[%emt 0:00:22]} Bxd4 {[%emt 0:00:12]} 28. Rxd4 {[%emt 0:00:01]} Bc6 {[%emt 0:00:03]} 29. f3 {[%emt 0:00:08]} Bd5 {[%emt 0:00:01]} 30. Rhd1 {[%emt 0:00:11]} Kd7 {[%emt 0:00:01]} 31. R1d2 {[%emt 0:00:21]} Kc6 {[%emt 0:00:02]} 1/2-1/2

[Event "IM Marmaris Karia VIII 2019"]
[Site "Marmaris"]
[Date "2019.07.28"]
[Round "4.2"]
[White "Rzayev, Bahruz"]
[Black "Abdulla, Khayala"]
[Result "1-0"]
[ECO "B43"]
[WhiteElo "2340"]
[BlackElo "2283"]
[Annotator "NA"]
[PlyCount "87"]
[EventDate "2019.07.29"]
[EventType "schev"]
[EventCountry "TUR"]
[SourceTitle "playchess.com"]
[Source "ChessBase"]
[SourceQuality "1"]
[TimeControl "5400+30"]

1. e4 {[%emt 0:00:30]} c5 {[%emt 0:07:30]} 2. Nf3 {[%emt 0:00:00]} e6 {[%emt 0:00:00]} 3. d4 {[%emt 0:00:00]} cxd4 {[%emt 0:00:00]} 4. Nxd4 {[%emt 0:00:00]} a6 {[%emt 0:01:30]} 5. Nc3 {[%emt 0:00:00]} Qc7 {[%emt 0:00:00]} 6. g3 {[%emt 0:00:30]} Bb4 {[%emt 0:02:00]} 7. Bd2 {[%emt 0:00:30]} Nf6 {[%emt 0:00:30]} 8. Bg2 {[%emt 0:00:30]} Nc6 {[%emt 0:00:30]} 9. Nb3 {[%emt 0:00:00]} Be7 {[%emt 0:00:00]} 10. O-O {[%emt 0:00:00]} d6 {[%emt 0:01:00]} 11. f4 {[%emt 0:00:30]} b5 {[%emt 0:01:30]} 12. a3 {[%emt 0:00:30]} Bb7 {[%emt 0:02:30]} 13. g4 {[%emt 0:00:30]} Nd7 {[%emt 0:03:30]} 14. Qe2 {[%emt 0:03:30]} Nb6 {[%emt 0:04:30]} 15. Rad1 {[%emt 0:08:30]} Na4 {[%emt 0:05:30]} 16. Nxa4 {[%emt 0:09:30]} bxa4 {[%emt 0:00:30]} 17. Nc1 {[%emt 0:01:30]} e5 {[%emt 0:08:30]} 18. Nd3 {[%emt 0:05:30]} O-O {[%emt 0:06:30]} 19. Qf2 {[%emt 0:05:30]} exf4 {[%emt 0:04:30]} 20. Bc3 {[%emt 0:11:30]} Ne5 {[%emt 0:03:30]} 21. Qxf4 {[%emt 0:00:30]} Ng6 {[%emt 0:02:30]} 22. Qf2 {[%emt 0:03:30]} Bh4 {[%emt 0:08:30]} 23. Qd4 {[%emt 0:09:30]} f6 {[%emt 0:01:30]} 24. Qxa4 {[%emt 0:03:30]} Rae8 {[%emt 0:04:30]} 25. Qd4 {[%emt 0:04:30]} Rf7 {[%emt 0:03:30]} 26. Nb4 {[%emt 0:01:30]} Qc8 {[%emt 0:08:52]} 27. h3 {[%emt 0:03:30]} Ne5 {[%emt 0:02:02]} 28. Nd5 {[%emt 0:02:30]} Nc4 {[%emt 0:01:32]} 29. Rd3 {[%emt 0:03:30]} Bg5 {[%emt 0:01:57]} 30. Re1 {[%emt 0:00:00]} h5 {[%emt 0:04:19]} 31. gxh5 {[%emt 0:01:00]} Bh4 {[%emt 0:00:40]} 32. Re2 {[%emt 0:00:30]} f5 {[%emt 0:04:24]} 33. e5 {[%emt 0:00:30]} f4 {[%emt 0:04:11]} 34. e6 {[%emt 0:00:00]} Rxe6 {[%emt 0:00:37]} 35. Rxe6 {[%emt 0:00:00]} Qxe6 {[%emt 0:00:16]} 36. Nxf4 {[%emt 0:00:30]} Qf5 {[%emt 0:01:46]} 37. Bxb7 {[%emt 0:00:30]} Qg5+ {[%emt 0:01:03]} 38. Kh1 {[%emt 0:00:30]} Rxf4 {[%emt 0:00:58]} 39. Qd5+ {[%emt 0:00:30]} Qxd5+ {[%emt 0:01:39]} 40. Bxd5+ {[%emt 0:00:00]} Kh7 {[%emt 0:00:10]} 41. Bxc4 {[%emt 0:00:00]} Rxc4 {[%emt 0:00:01]} 42. Rxd6 {[%emt 0:00:30]} a5 {[%emt 0:00:50]} 43. Rd7 {[%emt 0:00:00]} Kh6 {[%emt 0:00:10]} 44. Rd4 {[%emt 0:00:00]} 1-0

[Event "IM Marmaris Karia VIII 2019"]
[Site "Marmaris"]
[Date "2019.07.28"]
[Round "4.3"]
[White "Maghalashvili, Davit"]
[Black "Karaoglan, Doruk"]
[Result "1-0"]
[ECO "A38"]
[WhiteElo "2485"]
[BlackElo "2278"]
[Annotator "ChessBase"]
[PlyCount "73"]
[EventDate "2019.07.29"]
[EventType "schev"]
[EventCountry "TUR"]
[SourceTitle "playchess.com"]
[Source "ChessBase"]
[SourceQuality "1"]
[TimeControl "5400+30"]

1. Nf3 {[%emt 0:25:30]} Nf6 {[%emt 0:00:30]} 2. g3 {[%emt 0:00:30]} g6 {[%emt 0:00:00]} 3. c4 {[%emt 0:00:30]} Bg7 {[%emt 0:00:00]} 4. Bg2 {[%emt 0:00:00]} O-O {[%emt 0:00:00]} 5. O-O {[%emt 0:00:00]} c5 {[%emt 0:01:00]} 6. d4 {[%emt 0:00:30]} cxd4 {[%emt 0:00:30]} 7. Nxd4 {[%emt 0:00:30]} Nc6 {[%emt 0:00:30]} 8. Nc3 {[%emt 0:00:30]} d6 {[%emt 0:00:30]} 9. Nc2 {[%emt 0:00:30]} Be6 {[%emt 0:14:30]} 10. b3 {[%emt 0:06:30]} Nd7 {[%emt 0:05:30]} 11. Bb2 {[%emt 0:00:30]} a5 {[%emt 0:01:30]} 12. Qd2 {[%emt 0:00:30]} Nc5 {[%emt 0:01:30]} 13. Ne3 {[%emt 0:00:30]} Rb8 {[%emt 0:12:30]} 14. Nb5 {[%emt 0:01:30]} Bxb2 {[%emt 0:02:30]} 15. Qxb2 {[%emt 0:00:30]} Qb6 {[%emt 0:03:30]} 16. Rad1 {[%emt 0:03:30]} Ne5 {[%emt 0:06:30]} 17. h3 {[%emt 0:05:30]} Rfc8 {[%emt 0:09:30]} 18. Kh2 {[%emt 0:00:30]} Ned7 {[%emt 0:03:30]} 19. Rd4 {[%emt 0:01:30]} Nf6 {[%emt 0:03:30]} 20. Rfd1 {[%emt 0:00:30]} Rd8 {[%emt 0:06:30]} 21. f4 {[%emt 0:04:30]} Bd7 {[%emt 0:10:57]} 22. Nxd6 {[%emt 0:12:30]} Ne6 {[%emt 0:01:41]} 23. R4d3 {[%emt 0:01:30]} Nc5 {[%emt 0:02:33]} 24. R3d2 {[%emt 0:01:30]} Bc6 {[%emt 0:01:22]} 25. Qe5 {[%emt 0:02:30]} Ne6 {[%emt 0:10:37]} 26. Nb5 {[%emt 0:01:30]} Bxg2 {[%emt 0:01:14]} 27. Kxg2 {[%emt 0:00:00]} Rxd2 {[%emt 0:00:28]} 28. Rxd2 {[%emt 0:01:00]} Rc8 {[%emt 0:00:23]} 29. Nd5 {[%emt 0:00:30]} Nxd5 {[%emt 0:00:05]} 30. Rxd5 {[%emt 0:00:30]} a4 {[%emt 0:00:44]} 31. Rd7 {[%emt 0:01:30]} axb3 {[%emt 0:00:40]} 32. axb3 {[%emt 0:00:00]} Rc5 {[%emt 0:00:40]} 33. Qb8+ {[%emt 0:00:00]} Nf8 {[%emt 0:00:31]} 34. Rd8 {[%emt 0:00:30]} Qe6 {[%emt 0:00:09]} 35. Rxf8+ {[%emt 0:00:30]} Kg7 {[%emt 0:00:01]} 36. Rg8+ {[%emt 0:00:30]} Kf6 {[%emt 0:00:01]} 37. Nc3 {[%emt 0:01:30]} 1-0

[Event "IM Marmaris Karia VIII 2019"]
[Site "Marmaris"]
[Date "2019.07.28"]
[Round "4.4"]
[White "Benidze, Davit"]
[Black "Yazici, Ugur Doga"]
[Result "1/2-1/2"]
[ECO "E05"]
[WhiteElo "2469"]
[BlackElo "2143"]
[Annotator "ChessBase"]
[PlyCount "135"]
[EventDate "2019.07.29"]
[EventType "schev"]
[EventCountry "TUR"]
[SourceTitle "playchess.com"]
[Source "ChessBase"]
[SourceQuality "1"]
[TimeControl "5400+30"]

1. Nf3 {[%emt 0:24:30]} Nf6 {[%emt 0:00:30]} 2. c4 {[%emt 0:00:30]} e6 {[%emt 0:00:30]} 3. g3 {[%emt 0:00:30]} d5 {[%emt 0:00:30]} 4. Bg2 {[%emt 0:00:00]} Be7 {[%emt 0:00:00]} 5. O-O {[%emt 0:00:00]} O-O {[%emt 0:00:00]} 6. d4 {[%emt 0:00:00]} dxc4 {[%emt 0:00:30]} 7. Qa4 {[%emt 0:00:00]} a6 {[%emt 0:01:30]} 8. Qxc4 {[%emt 0:00:30]} b5 {[%emt 0:00:30]} 9. Qc2 {[%emt 0:00:30]} Bb7 {[%emt 0:00:00]} 10. Bd2 {[%emt 0:02:30]} Be4 {[%emt 0:01:00]} 11. Qc1 {[%emt 0:00:30]} Bb7 {[%emt 0:00:30]} 12. Rd1 {[%emt 0:00:30]} Qc8 {[%emt 0:02:30]} 13. Bg5 {[%emt 0:07:30]} h6 {[%emt 0:02:30]} 14. Bxf6 {[%emt 0:00:00]} Bxf6 {[%emt 0:00:30]} 15. Nbd2 {[%emt 0:00:00]} Nd7 {[%emt 0:00:30]} 16. Nb3 {[%emt 0:01:30]} Bd5 {[%emt 0:02:30]} 17. Ne1 {[%emt 0:05:30]} Bxg2 {[%emt 0:04:30]} 18. Nxg2 {[%emt 0:00:00]} a5 {[%emt 0:03:30]} 19. Qc6 {[%emt 0:18:00]} a4 {[%emt 0:00:30]} 20. Nc5 {[%emt 0:00:00]} Nxc5 {[%emt 0:00:00]} 21. Qxc5 {[%emt 0:00:00]} Qb7 {[%emt 0:01:00]} 22. Nf4 {[%emt 0:04:30]} Bg5 {[%emt 0:08:30]} 23. Nd3 {[%emt 0:02:30]} Rfd8 {[%emt 0:00:30]} 24. e3 {[%emt 0:01:30]} Rd5 {[%emt 0:02:30]} 25. Qc2 {[%emt 0:02:30]} Rc8 {[%emt 0:01:30]} 26. Nb4 {[%emt 0:07:30]} Rd6 {[%emt 0:00:30]} 27. Rac1 {[%emt 0:00:30]} c5 {[%emt 0:13:30]} 28. dxc5 {[%emt 0:00:00]} Rxd1+ {[%emt 0:00:30]} 29. Qxd1 {[%emt 0:00:00]} Be7 {[%emt 0:00:30]} 30. c6 {[%emt 0:00:30]} Qa8 {[%emt 0:02:30]} 31. Nd3 {[%emt 0:07:16]} Rxc6 {[%emt 0:01:30]} 32. Ne5 {[%emt 0:00:09]} Rxc1 {[%emt 0:00:30]} 33. Qxc1 {[%emt 0:00:01]} Bf6 {[%emt 0:00:30]} 34. Nd7 {[%emt 0:00:42]} Qb7 {[%emt 0:02:30]} 35. Nc5 {[%emt 0:13:55]} Qd5 {[%emt 0:01:30]} 36. b3 {[%emt 0:01:38]} Be7 {[%emt 0:00:30]} 37. Na6 {[%emt 0:00:02]} axb3 {[%emt 0:00:30]} 38. axb3 {[%emt 0:00:02]} Qxb3 {[%emt 0:00:30]} 39. Qc8+ {[%emt 0:00:01]} Bf8 {[%emt 0:00:30]} 40. Qb7 {[%emt 0:00:03]} Qd1+ {[%emt 0:00:30]} 41. Kg2 {[%emt 0:00:03]} Qa4 {[%emt 0:00:30]} 42. Nc7 {[%emt 0:02:02]} b4 {[%emt 0:00:30]} 43. Nb5 {[%emt 0:00:04]} e5 {[%emt 0:01:30]} 44. Qb8 {[%emt 0:02:06]} f6 {[%emt 0:04:30]} 45. Qb7 {[%emt 0:00:36]} Qb3 {[%emt 0:00:30]} 46. Nc7 {[%emt 0:00:50]} Qf7 {[%emt 0:01:30]} 47. Qb6 {[%emt 0:00:04]} Qc4 {[%emt 0:00:30]} 48. Qb7 {[%emt 0:01:42]} b3 {[%emt 0:00:30]} 49. Nd5 {[%emt 0:00:22]} b2 {[%emt 0:00:30]} 50. Nxf6+ {[%emt 0:00:33]} gxf6 {[%emt 0:00:00]} 51. Qxb2 {[%emt 0:00:01]} Qe4+ {[%emt 0:01:00]} 52. Kg1 {[%emt 0:00:05]} h5 {[%emt 0:00:00]} 53. h4 {[%emt 0:00:03]} Qc4 {[%emt 0:02:00]} 54. Qd2 {[%emt 0:00:07]} Kg7 {[%emt 0:00:30]} 55. Qd7+ {[%emt 0:00:02]} Qf7 {[%emt 0:00:30]} 56. Qf5 {[%emt 0:00:03]} Kh6 {[%emt 0:02:30]} 57. Kg2 {[%emt 0:00:05]} Qg6 {[%emt 0:00:30]} 58. Qf3 {[%emt 0:00:18]} f5 {[%emt 0:00:30]} 59. Qd5 {[%emt 0:00:06]} Bd6 {[%emt 0:01:30]} 60. Qa8 {[%emt 0:00:03]} Kg7 {[%emt 0:03:30]} 61. Qb7+ {[%emt 0:00:05]} Qf7 {[%emt 0:00:30]} 62. Qc6 {[%emt 0:00:41]} Be7 {[%emt 0:01:30]} 63. Qf3 {[%emt 0:00:15]} Qg6 {[%emt 0:00:30]} 64. Qb7 {[%emt 0:00:04]} Qf6 {[%emt 0:00:30]} 65. Qf3 {[%emt 0:00:07]} Kh6 {[%emt 0:00:30]} 66. Qd5 {[%emt 0:00:08]} f4 {[%emt 0:00:30]} 67. exf4 {[%emt 0:00:05]} exf4 {[%emt 0:00:30]} 68. Qg5+ {[%emt 0:00:06]} 1/2-1/2